[Event "Late-Titled-Tuesday-Blitz-March-05-2024"]
[Site "Chess.com"]
[Date "2024.03.05"]
[Round "5"]
[White "Eliwood44"]
[Black "C_K_G"]
[Result "1-0"]
[WhiteElo "2516"]
[BlackElo "2177"]
[TimeControl "180+1"]
[EndTime "14:54:09 PST"]
[Termination "Eliwood44 won by resignation"]

1. d4 {[%clk 0:02:57.6]} 1... d5 {[%clk 0:02:59]} 2. c4 {[%clk 0:02:53.8]} 2...
e6 {[%clk 0:02:59]} 3. Nc3 {[%clk 0:02:52.9]} 3... Nf6 {[%clk 0:02:59.5]} 4.
cxd5 {[%clk 0:02:53]} 4... exd5 {[%clk 0:02:59.1]} 5. Bg5 {[%clk 0:02:53.6]}
5... Be7 {[%clk 0:02:59.6]} 6. e3 {[%clk 0:02:53.7]} 6... O-O {[%clk 0:02:59.1]}
7. Bd3 {[%clk 0:02:52.5]} 7... h6 {[%clk 0:02:59.1]} 8. Bf4 {[%clk 0:02:51.6]}
8... c6 {[%clk 0:02:58.5]} 9. Qc2 {[%clk 0:02:51]} 9... Be6 {[%clk 0:02:56.7]}
10. Nf3 {[%clk 0:02:51]} 10... Nbd7 {[%clk 0:02:55.7]} 11. O-O {[%clk
0:02:50.9]} 11... Re8 {[%clk 0:02:53.2]} 12. Rab1 {[%clk 0:02:49.8]} 12... Nf8
{[%clk 0:02:49]} 13. Ne5 {[%clk 0:02:47]} 13... N6d7 {[%clk 0:02:48.1]} 14. b4
{[%clk 0:02:43.3]} 14... Nxe5 {[%clk 0:02:37.6]} 15. Bxe5 {[%clk 0:02:36.1]}
15... Bd6 {[%clk 0:02:13.2]} 16. Bxd6 {[%clk 0:02:34]} 16... Qxd6 {[%clk
0:02:12.5]} 17. Ne2 {[%clk 0:02:34.3]} 17... Bd7 {[%clk 0:02:00.1]} 18. a4
{[%clk 0:02:31]} 18... Re7 {[%clk 0:01:53.8]} 19. b5 {[%clk 0:02:29.1]} 19...
cxb5 {[%clk 0:01:50.5]} 20. axb5 {[%clk 0:02:27.2]} 20... a6 {[%clk 0:01:47]}
21. Rfc1 {[%clk 0:02:23.1]} 21... axb5 {[%clk 0:01:44.3]} 22. Bxb5 {[%clk
0:02:22.2]} 22... Bxb5 {[%clk 0:01:42.4]} 23. Rxb5 {[%clk 0:02:23.1]} 23... g6
{[%clk 0:01:21.7]} 24. Nf4 {[%clk 0:02:20.2]} 24... Ne6 {[%clk 0:00:53.8]} 25.
Nxd5 {[%clk 0:02:08.9]} 25... Kg7 {[%clk 0:00:32.7]} 26. Nxe7 {[%clk 0:02:06.8]}
26... Qxe7 {[%clk 0:00:33.6]} 27. Rcb1 {[%clk 0:02:01.9]} 27... Ra7 {[%clk
0:00:20.4]} 28. Qe4 {[%clk 0:01:56.2]} 28... Qf6 {[%clk 0:00:13.8]} 29. Rxb7
{[%clk 0:01:50]} 29... Ra5 {[%clk 0:00:14.2]} 30. g3 {[%clk 0:01:41.5]} 30...
Ng5 {[%clk 0:00:13.4]} 31. Qg2 {[%clk 0:01:25.7]} 31... Rf5 {[%clk 0:00:13.5]}
32. f4 {[%clk 0:01:24.8]} 32... Ne6 {[%clk 0:00:13.7]} 33. Qe4 {[%clk
0:01:17.7]} 33... g5 {[%clk 0:00:12.7]} 34. R1b6 {[%clk 0:01:13.5]} 34... Kg6
{[%clk 0:00:12.4]} 35. g4 {[%clk 0:01:07.4]} 35... gxf4 {[%clk 0:00:07.1]} 36.
Qxf5+ {[%clk 0:01:06.1]} 36... Qxf5 {[%clk 0:00:06.9]} 37. gxf5+ {[%clk
0:01:06.3]} 37... Kxf5 {[%clk 0:00:07.3]} 38. Rxf7+ {[%clk 0:01:06.4]} 38... Kg6
{[%clk 0:00:07.6]} 39. Rxf4 {[%clk 0:01:05.1]} 1-0

[Event "Late-Titled-Tuesday-Blitz-March-05-2024"]
[Site "Chess.com"]
[Date "2024.03.05"]
[Round "5"]
[White "Viktor_Poddubnyi"]
[Black "Zallio"]
[Result "1-0"]
[WhiteElo "2271"]
[BlackElo "2144"]
[TimeControl "180+1"]
[EndTime "14:54:11 PST"]
[Termination "Viktor_Poddubnyi won by resignation"]

1. e4 {[%clk 0:03:00]} 1... e6 {[%clk 0:02:57]} 2. d4 {[%clk 0:02:59.6]} 2... d5
{[%clk 0:02:57.4]} 3. Nd2 {[%clk 0:02:59.8]} 3... dxe4 {[%clk 0:02:56.7]} 4.
Nxe4 {[%clk 0:03:00.7]} 4... Nf6 {[%clk 0:02:57.4]} 5. Nxf6+ {[%clk 0:02:59.6]}
5... Qxf6 {[%clk 0:02:57.3]} 6. Nf3 {[%clk 0:02:59.2]} 6... h6 {[%clk
0:02:57.8]} 7. Bd3 {[%clk 0:02:58.6]} 7... c5 {[%clk 0:02:56.4]} 8. O-O {[%clk
0:02:57.4]} 8... cxd4 {[%clk 0:02:55.7]} 9. Nxd4 {[%clk 0:02:53.4]} 9... Bd7
{[%clk 0:02:53.8]} 10. Nb5 {[%clk 0:02:46.5]} 10... Na6 {[%clk 0:02:47.4]} 11.
c3 {[%clk 0:02:16.4]} 11... Bc6 {[%clk 0:02:46.6]} 12. Be3 {[%clk 0:02:11.3]}
12... Rd8 {[%clk 0:02:30.8]} 13. Qe2 {[%clk 0:02:06.7]} 13... Be7 {[%clk
0:02:20.5]} 14. Nxa7 {[%clk 0:02:04.9]} 14... Nc5 {[%clk 0:02:07.5]} 15. Nxc6
{[%clk 0:01:58.6]} 15... bxc6 {[%clk 0:02:00.8]} 16. Bc2 {[%clk 0:01:56.2]}
16... O-O {[%clk 0:01:59.2]} 17. Qc4 {[%clk 0:01:47.3]} 17... Rd5 {[%clk
0:01:41.6]} 18. a4 {[%clk 0:01:40.7]} 18... Rc8 {[%clk 0:01:33.6]} 19. a5 {[%clk
0:01:40]} 19... Bd6 {[%clk 0:01:31.4]} 20. a6 {[%clk 0:01:31.6]} 20... Rh5
{[%clk 0:01:26.2]} 21. g3 {[%clk 0:01:26.6]} 21... Rxh2 {[%clk 0:01:17.3]} 22.
Kxh2 {[%clk 0:01:21.5]} 22... Nd7 {[%clk 0:01:04.6]} 23. f4 {[%clk 0:00:55.8]}
23... e5 {[%clk 0:00:59.3]} 24. Qe4 {[%clk 0:00:42]} 24... exf4 {[%clk
0:00:54.7]} 25. Bxf4 {[%clk 0:00:35.1]} 25... Bxf4 {[%clk 0:00:51.2]} 26. Qxf4
{[%clk 0:00:33.5]} 26... Qe6 {[%clk 0:00:49.8]} 27. a7 {[%clk 0:00:31.9]} 27...
Ra8 {[%clk 0:00:48.9]} 28. Qe4 {[%clk 0:00:27.8]} 28... Qd6 {[%clk 0:00:40.5]}
29. Rad1 {[%clk 0:00:26.2]} 1-0

[Event "Late-Titled-Tuesday-Blitz-March-05-2024"]
[Site "Chess.com"]
[Date "2024.03.05"]
[Round "5"]
[White "rdarruda"]
[Black "Hudijegszid"]
[Result "1-0"]
[WhiteElo "2530"]
[BlackElo "2346"]
[TimeControl "180+1"]
[EndTime "14:54:18 PST"]
[Termination "rdarruda won by resignation"]

1. g3 {[%clk 0:01:01.1]} 1... Nf6 {[%clk 0:02:58]} 2. Bg2 {[%clk 0:01:02]} 2...
e6 {[%clk 0:02:58.2]} 3. d3 {[%clk 0:01:02.5]} 3... d5 {[%clk 0:02:57.9]} 4. Nd2
{[%clk 0:01:02.2]} 4... Be7 {[%clk 0:02:58.2]} 5. Ngf3 {[%clk 0:01:02.9]} 5...
O-O {[%clk 0:02:58.6]} 6. O-O {[%clk 0:01:03.6]} 6... c5 {[%clk 0:02:58.4]} 7.
e4 {[%clk 0:01:04.5]} 7... Nc6 {[%clk 0:02:58.2]} 8. Qe2 {[%clk 0:01:04.2]} 8...
Re8 {[%clk 0:02:55.8]} 9. Re1 {[%clk 0:01:04]} 9... b5 {[%clk 0:02:38.7]} 10. e5
{[%clk 0:01:03.8]} 10... Nd7 {[%clk 0:02:36.9]} 11. h4 {[%clk 0:01:02.7]} 11...
f6 {[%clk 0:02:27.6]} 12. exf6 {[%clk 0:01:00.7]} 12... Bxf6 {[%clk 0:02:28.2]}
13. Nf1 {[%clk 0:01:00]} 13... Nde5 {[%clk 0:02:25.1]} 14. N1h2 {[%clk
0:00:58.5]} 14... b4 {[%clk 0:02:19.3]} 15. Nxe5 {[%clk 0:00:58.1]} 15... Nxe5
{[%clk 0:02:20.2]} 16. Ng4 {[%clk 0:00:56.6]} 16... Nxg4 {[%clk 0:02:19.6]} 17.
Qxg4 {[%clk 0:00:57.5]} 17... e5 {[%clk 0:02:04.4]} 18. Qf3 {[%clk 0:00:56.5]}
18... Be6 {[%clk 0:02:02.5]} 19. a3 {[%clk 0:00:55.6]} 19... a5 {[%clk
0:02:00.9]} 20. axb4 {[%clk 0:00:55.6]} 20... axb4 {[%clk 0:02:01.8]} 21. Rxa8
{[%clk 0:00:55.7]} 21... Qxa8 {[%clk 0:02:02.7]} 22. Bg5 {[%clk 0:00:55.6]}
22... Bxg5 {[%clk 0:02:00]} 23. hxg5 {[%clk 0:00:56.5]} 23... Bf7 {[%clk
0:01:59.4]} 24. b3 {[%clk 0:00:55.5]} 24... Qd8 {[%clk 0:01:47.4]} 25. Qe3
{[%clk 0:00:54.9]} 25... Qd6 {[%clk 0:01:46.9]} 26. Qd2 {[%clk 0:00:52.3]} 26...
g6 {[%clk 0:01:45.5]} 27. Re2 {[%clk 0:00:52.5]} 27... Kg7 {[%clk 0:01:39.3]}
28. Qe1 {[%clk 0:00:52.6]} 28... Re7 {[%clk 0:01:38.3]} 29. f4 {[%clk
0:00:52.5]} 29... e4 {[%clk 0:01:29.9]} 30. dxe4 {[%clk 0:00:51]} 30... dxe4
{[%clk 0:01:30.8]} 31. Rxe4 {[%clk 0:00:51.2]} 31... Qd4+ {[%clk 0:01:17.5]} 32.
Kh2 {[%clk 0:00:49.2]} 32... Rxe4 {[%clk 0:01:13.7]} 33. Qxe4 {[%clk 0:00:50.1]}
33... Qxe4 {[%clk 0:01:11.6]} 34. Bxe4 {[%clk 0:00:51]} 34... c4 {[%clk
0:01:11.9]} 35. bxc4 {[%clk 0:00:49.6]} 35... Bxc4 {[%clk 0:01:12.8]} 36. Kg1
{[%clk 0:00:49.2]} 36... b3 {[%clk 0:01:09.5]} 37. cxb3 {[%clk 0:00:45.8]} 37...
Bxb3 {[%clk 0:01:10.4]} 38. Kf2 {[%clk 0:00:46.2]} 38... Kf7 {[%clk 0:01:06.2]}
39. Ke3 {[%clk 0:00:46.3]} 39... Ke6 {[%clk 0:01:06]} 40. Kd4 {[%clk 0:00:46.5]}
40... Ba2 {[%clk 0:01:03.7]} 41. g4 {[%clk 0:00:46.6]} 41... Kf7 {[%clk
0:01:03]} 42. Ke5 {[%clk 0:00:46.1]} 42... Bc4 {[%clk 0:01:00.9]} 43. Bd5+
{[%clk 0:00:43.9]} 43... Bxd5 {[%clk 0:00:54.2]} 44. Kxd5 {[%clk 0:00:44.8]}
44... Ke7 {[%clk 0:00:54]} 45. Ke5 {[%clk 0:00:45]} 45... Kf7 {[%clk 0:00:52.5]}
46. Kd6 {[%clk 0:00:45.1]} 46... Kf8 {[%clk 0:00:53]} 47. Ke6 {[%clk 0:00:45]}
47... Ke8 {[%clk 0:00:53.7]} 48. Kf6 {[%clk 0:00:44.4]} 48... Kf8 {[%clk
0:00:54.3]} 49. f5 {[%clk 0:00:44.3]} 49... gxf5 {[%clk 0:00:53.7]} 50. gxf5
{[%clk 0:00:44.5]} 50... Kg8 {[%clk 0:00:53.4]} 51. Ke7 {[%clk 0:00:41.4]} 51...
Kg7 {[%clk 0:00:53.6]} 52. f6+ {[%clk 0:00:41.7]} 52... Kg6 {[%clk 0:00:54.2]}
53. f7 {[%clk 0:00:42]} 53... Kxg5 {[%clk 0:00:55.1]} 54. f8=Q {[%clk
0:00:42.3]} 54... h5 {[%clk 0:00:56]} 55. Qg7+ {[%clk 0:00:41.9]} 55... Kh4
{[%clk 0:00:56.2]} 56. Qg6 {[%clk 0:00:42.1]} 1-0

[Event "Late-Titled-Tuesday-Blitz-March-05-2024"]
[Site "Chess.com"]
[Date "2024.03.05"]
[Round "5"]
[White "Sanan_Sjugirov"]
[Black "AlexeiShirov"]
[Result "1-0"]
[WhiteElo "3000"]
[BlackElo "2862"]
[TimeControl "180+1"]
[EndTime "14:54:21 PST"]
[Termination "Sanan_Sjugirov won by resignation"]

1. e4 {[%clk 0:02:57]} 1... e5 {[%clk 0:02:59.6]} 2. Nf3 {[%clk 0:02:56.8]} 2...
Nc6 {[%clk 0:02:59.8]} 3. Bb5 {[%clk 0:02:56.7]} 3... a6 {[%clk 0:02:59.8]} 4.
Ba4 {[%clk 0:02:56.9]} 4... Nf6 {[%clk 0:03:00.4]} 5. O-O {[%clk 0:02:56.8]}
5... b5 {[%clk 0:03:01]} 6. Bb3 {[%clk 0:02:55.1]} 6... Bc5 {[%clk 0:03:01.5]}
7. a4 {[%clk 0:02:44.6]} 7... Rb8 {[%clk 0:03:00.9]} 8. axb5 {[%clk 0:02:44]}
8... axb5 {[%clk 0:03:00.4]} 9. c3 {[%clk 0:02:43.5]} 9... d6 {[%clk 0:03:00.3]}
10. d4 {[%clk 0:02:43.5]} 10... Bb6 {[%clk 0:03:00.2]} 11. Na3 {[%clk
0:02:42.8]} 11... Bg4 {[%clk 0:02:56.8]} 12. Nxb5 {[%clk 0:02:39.5]} 12... O-O
{[%clk 0:02:56.2]} 13. Bc2 {[%clk 0:02:35.7]} 13... exd4 {[%clk 0:02:44.3]} 14.
Nbxd4 {[%clk 0:02:31.8]} 14... Nxd4 {[%clk 0:02:36.2]} 15. cxd4 {[%clk
0:02:31.8]} 15... Bxf3 {[%clk 0:02:31.5]} 16. gxf3 {[%clk 0:02:32.7]} 16... Nh5
{[%clk 0:02:30]} 17. Kh1 {[%clk 0:02:29.6]} 17... Qf6 {[%clk 0:02:23.6]} 18. Ra4
{[%clk 0:02:14.8]} 18... c5 {[%clk 0:02:09.9]} 19. e5 {[%clk 0:01:44.7]} 19...
Qe6 {[%clk 0:01:41.6]} 20. d5 {[%clk 0:01:33.6]} 20... Qd7 {[%clk 0:01:29.6]}
21. Rh4 {[%clk 0:01:30.3]} 21... g6 {[%clk 0:01:28.6]} 22. Rxh5 {[%clk 0:01:26]}
22... gxh5 {[%clk 0:01:27.8]} 23. Qd3 {[%clk 0:01:17.1]} 23... f5 {[%clk
0:01:26.5]} 24. e6 {[%clk 0:01:14.2]} 24... Qe7 {[%clk 0:01:20.7]} 25. Rg1+
{[%clk 0:01:06.6]} 25... Kh8 {[%clk 0:01:19.4]} 26. Bd2 {[%clk 0:01:06.9]} 26...
Rf6 {[%clk 0:00:51.9]} 27. Bc3 {[%clk 0:01:05.9]} 27... Rg8 {[%clk 0:00:49.4]}
28. Rg3 {[%clk 0:00:50.2]} 28... Rxg3 {[%clk 0:00:41.7]} 29. hxg3 {[%clk
0:00:51.1]} 29... Kg8 {[%clk 0:00:38.8]} 30. Qb5 {[%clk 0:00:39.8]} 30... Bd8
{[%clk 0:00:34.9]} 31. Bxf6 {[%clk 0:00:37.2]} 31... Qxf6 {[%clk 0:00:34.1]} 32.
Qe8+ {[%clk 0:00:37.9]} 32... Kg7 {[%clk 0:00:31.5]} 33. Qxh5 {[%clk 0:00:36.4]}
33... Qg5 {[%clk 0:00:15.1]} 34. Qf7+ {[%clk 0:00:32.5]} 34... Kh6 {[%clk
0:00:14.5]} 35. Bxf5 {[%clk 0:00:31.3]} 1-0

[Event "Late-Titled-Tuesday-Blitz-March-05-2024"]
[Site "Chess.com"]
[Date "2024.03.05"]
[Round "5"]
[White "Agibileg"]
[Black "Sandstad"]
[Result "1-0"]
[WhiteElo "2648"]
[BlackElo "2469"]
[TimeControl "180+1"]
[EndTime "14:54:25 PST"]
[Termination "Agibileg won by resignation"]

1. d4 {[%clk 0:02:59.5]} 1... Nf6 {[%clk 0:02:59.8]} 2. c4 {[%clk 0:02:59.4]}
2... e6 {[%clk 0:03:00.2]} 3. Nc3 {[%clk 0:02:59.3]} 3... Bb4 {[%clk 0:02:59.5]}
4. e3 {[%clk 0:02:59.7]} 4... O-O {[%clk 0:02:55]} 5. Bd3 {[%clk 0:02:59.1]}
5... d5 {[%clk 0:02:55.1]} 6. a3 {[%clk 0:02:59.6]} 6... Bxc3+ {[%clk
0:02:53.8]} 7. bxc3 {[%clk 0:02:59.9]} 7... dxc4 {[%clk 0:02:53.5]} 8. Bxc4
{[%clk 0:03:00.8]} 8... c5 {[%clk 0:02:53.9]} 9. Nf3 {[%clk 0:03:01.4]} 9... b6
{[%clk 0:02:50.6]} 10. O-O {[%clk 0:03:00.9]} 10... Ba6 {[%clk 0:02:49.5]} 11.
Bxa6 {[%clk 0:03:00.6]} 11... Nxa6 {[%clk 0:02:50.4]} 12. c4 {[%clk 0:02:58.5]}
12... Qc7 {[%clk 0:02:47.1]} 13. Qa4 {[%clk 0:02:51.1]} 13... Qb7 {[%clk
0:02:39.5]} 14. Bb2 {[%clk 0:02:50.6]} 14... Rac8 {[%clk 0:02:36.7]} 15. d5
{[%clk 0:02:48.8]} 15... exd5 {[%clk 0:02:25.3]} 16. Bxf6 {[%clk 0:02:48.5]}
16... gxf6 {[%clk 0:02:25.9]} 17. cxd5 {[%clk 0:02:48.8]} 17... Nb8 {[%clk
0:02:20.1]} 18. Qg4+ {[%clk 0:02:46.9]} 18... Kh8 {[%clk 0:02:18.3]} 19. Rad1
{[%clk 0:02:46]} 19... Qd7 {[%clk 0:02:15.2]} 20. Qh4 {[%clk 0:02:45.4]} 20...
Qd6 {[%clk 0:02:15.3]} 21. e4 {[%clk 0:02:39.5]} 21... Nd7 {[%clk 0:02:15.2]}
22. Nd2 {[%clk 0:02:33.6]} 22... c4 {[%clk 0:02:14]} 23. f4 {[%clk 0:02:33.4]}
23... c3 {[%clk 0:02:12]} 24. Nf3 {[%clk 0:02:33.8]} 24... c2 {[%clk 0:02:07.7]}
25. Rc1 {[%clk 0:02:34.2]} 25... Qxa3 {[%clk 0:02:04.2]} 26. e5 {[%clk
0:02:26.3]} 26... Qc5+ {[%clk 0:01:16.6]} 27. Kh1 {[%clk 0:02:26]} 27... Qxd5
{[%clk 0:01:16.7]} 28. Rf2 {[%clk 0:02:03.9]} 28... Rg8 {[%clk 0:01:08.1]} 29.
Rd2 {[%clk 0:02:01.1]} 29... Qe6 {[%clk 0:01:02.8]} 30. h3 {[%clk 0:01:49.1]}
30... fxe5 {[%clk 0:00:53.7]} 31. Ng5 {[%clk 0:01:47.3]} 31... Rxg5 {[%clk
0:00:51.1]} 32. Qxg5 {[%clk 0:01:39.3]} 32... f6 {[%clk 0:00:44.3]} 33. f5
{[%clk 0:01:32.1]} 33... Qb3 {[%clk 0:00:32]} 34. Qh6 {[%clk 0:01:28.4]} 34...
Qa4 {[%clk 0:00:21.2]} 35. Qe3 {[%clk 0:00:50.8]} 35... Rc7 {[%clk 0:00:15.9]}
36. Qd3 {[%clk 0:00:45.1]} 36... e4 {[%clk 0:00:16]} 37. Qd6 {[%clk 0:00:43.5]}
37... Qc4 {[%clk 0:00:16]} 38. Rdxc2 {[%clk 0:00:39.9]} 1-0

[Event "Late-Titled-Tuesday-Blitz-March-05-2024"]
[Site "Chess.com"]
[Date "2024.03.05"]
[Round "5"]
[White "Chopper1905"]
[Black "Gennady_Kozlov"]
[Result "1-0"]
[WhiteElo "2973"]
[BlackElo "2698"]
[TimeControl "180+1"]
[EndTime "14:54:26 PST"]
[Termination "Chopper1905 won by resignation"]

1. c4 {[%clk 0:02:58.7]} 1... e5 {[%clk 0:02:59.2]} 2. Nc3 {[%clk 0:02:48.8]}
2... Nc6 {[%clk 0:02:59.5]} 3. g3 {[%clk 0:02:47]} 3... g6 {[%clk 0:02:59.4]} 4.
Bg2 {[%clk 0:02:47.4]} 4... Bg7 {[%clk 0:03:00]} 5. e3 {[%clk 0:02:48.1]} 5...
d6 {[%clk 0:02:59.1]} 6. d3 {[%clk 0:02:45.9]} 6... Nge7 {[%clk 0:02:58.4]} 7.
Nge2 {[%clk 0:02:44.4]} 7... Be6 {[%clk 0:02:58]} 8. Nd5 {[%clk 0:02:41.1]} 8...
Qd7 {[%clk 0:02:56.6]} 9. Rb1 {[%clk 0:02:33.7]} 9... a5 {[%clk 0:02:56.2]} 10.
b3 {[%clk 0:02:30.7]} 10... O-O {[%clk 0:02:55]} 11. O-O {[%clk 0:02:29.1]}
11... Rac8 {[%clk 0:02:47.7]} 12. Ba3 {[%clk 0:02:24.7]} 12... Bh3 {[%clk
0:02:46.5]} 13. e4 {[%clk 0:02:01.9]} 13... Bxg2 {[%clk 0:02:41]} 14. Kxg2
{[%clk 0:02:01.9]} 14... Nd4 {[%clk 0:02:41.5]} 15. Nxd4 {[%clk 0:01:41.1]}
15... exd4 {[%clk 0:02:40.3]} 16. Rc1 {[%clk 0:01:37.9]} 16... b6 {[%clk
0:02:36.9]} 17. Bb2 {[%clk 0:01:15.7]} 17... f5 {[%clk 0:02:28.5]} 18. Re1
{[%clk 0:01:05.8]} 18... Nxd5 {[%clk 0:02:14.2]} 19. cxd5 {[%clk 0:01:03.8]}
19... f4 {[%clk 0:02:13.7]} 20. f3 {[%clk 0:00:58.6]} 20... Be5 {[%clk
0:02:07.7]} 21. Rc4 {[%clk 0:00:56.2]} 21... b5 {[%clk 0:01:51]} 22. Rc6 {[%clk
0:00:55.2]} 22... Rf7 {[%clk 0:01:51.1]} 23. g4 {[%clk 0:00:55.2]} 23... h5
{[%clk 0:01:50.3]} 24. h3 {[%clk 0:00:52.1]} 24... Rh7 {[%clk 0:01:49.6]} 25.
Rh1 {[%clk 0:00:52]} 25... Kf7 {[%clk 0:01:41.2]} 26. Qe1 {[%clk 0:00:27.7]}
26... b4 {[%clk 0:01:30.5]} 27. g5 {[%clk 0:00:23.9]} 27... h4 {[%clk
0:01:28.6]} 28. Kh2 {[%clk 0:00:24.3]} 28... Rh5 {[%clk 0:01:21]} 29. Rg1 {[%clk
0:00:24.8]} 29... Qe7 {[%clk 0:01:19.8]} 30. Rg4 {[%clk 0:00:17.4]} 30... Rxg5
{[%clk 0:01:08.6]} 31. Qxh4 {[%clk 0:00:17.1]} 31... Rxg4 {[%clk 0:01:08.1]} 32.
Qxg4 {[%clk 0:00:16.7]} 32... Rh8 {[%clk 0:01:05.6]} 33. Bc1 {[%clk 0:00:13]}
33... Rh4 {[%clk 0:01:00.1]} 34. Qc8 {[%clk 0:00:11.9]} 34... Qe8 {[%clk
0:00:49.1]} 35. Rxc7+ {[%clk 0:00:10.8]} 35... Kf8 {[%clk 0:00:50]} 36. Qb7
{[%clk 0:00:08.4]} 36... g5 {[%clk 0:00:47.7]} 37. Rc8 {[%clk 0:00:08.4]} 1-0

[Event "Late-Titled-Tuesday-Blitz-March-05-2024"]
[Site "Chess.com"]
[Date "2024.03.05"]
[Round "5"]
[White "WindWhistler11"]
[Black "semchik73"]
[Result "0-1"]
[WhiteElo "2535"]
[BlackElo "2438"]
[TimeControl "180+1"]
[EndTime "14:54:31 PST"]
[Termination "semchik73 won by resignation"]

1. c4 {[%clk 0:03:00.9]} 1... e5 {[%clk 0:02:59.4]} 2. Nc3 {[%clk 0:02:59.8]}
2... Nf6 {[%clk 0:03:00]} 3. Nf3 {[%clk 0:02:56]} 3... Nc6 {[%clk 0:02:59.9]} 4.
e4 {[%clk 0:02:56.2]} 4... Bc5 {[%clk 0:02:59.1]} 5. Nxe5 {[%clk 0:02:55.5]}
5... Nxe5 {[%clk 0:02:41.2]} 6. d4 {[%clk 0:02:55.5]} 6... Bb4 {[%clk
0:02:35.4]} 7. dxe5 {[%clk 0:02:54.8]} 7... Nxe4 {[%clk 0:02:35.1]} 8. Qf3
{[%clk 0:02:48.4]} 8... Nxc3 {[%clk 0:02:24.6]} 9. bxc3 {[%clk 0:02:49]} 9...
Ba5 {[%clk 0:02:20.6]} 10. Be2 {[%clk 0:02:39.4]} 10... Qe7 {[%clk 0:02:20.1]}
11. Qg3 {[%clk 0:02:26]} 11... d6 {[%clk 0:02:12.2]} 12. Bf4 {[%clk 0:02:07.7]}
12... dxe5 {[%clk 0:01:59.7]} 13. Bxe5 {[%clk 0:02:07.7]} 13... f6 {[%clk
0:01:59.8]} 14. Bd4 {[%clk 0:02:05.9]} 14... c5 {[%clk 0:01:56.5]} 15. Kd2
{[%clk 0:01:24.9]} 15... cxd4 {[%clk 0:01:53.2]} 16. Bh5+ {[%clk 0:01:25.3]}
16... g6 {[%clk 0:01:46.7]} 17. Rae1 {[%clk 0:01:06.2]} 17... Bxc3+ {[%clk
0:01:37.8]} 18. Kd1 {[%clk 0:01:05.7]} 18... Bxe1 {[%clk 0:01:33.3]} 19. Rxe1
{[%clk 0:01:06.6]} 19... Be6 {[%clk 0:01:33.5]} 20. Bg4 {[%clk 0:00:58.9]} 20...
f5 {[%clk 0:01:31.4]} 21. Bf3 {[%clk 0:00:59]} 21... O-O {[%clk 0:01:26.9]} 22.
Bd5 {[%clk 0:00:56.1]} 22... Rf6 {[%clk 0:01:23.7]} 23. Qe5 {[%clk 0:00:50.3]}
23... Re8 {[%clk 0:01:16.9]} 24. h4 {[%clk 0:00:44.7]} 24... Kf7 {[%clk
0:01:06.2]} 25. Qxd4 {[%clk 0:00:40]} 25... Qd6 {[%clk 0:00:49.2]} 26. Re5
{[%clk 0:00:19.6]} 26... Bxd5 {[%clk 0:00:43.8]} 27. Rxd5 {[%clk 0:00:17.5]}
27... Qe6 {[%clk 0:00:42.1]} 28. Kc2 {[%clk 0:00:10.8]} 28... Re7 {[%clk
0:00:36.1]} 29. h5 {[%clk 0:00:09.5]} 29... Qe4+ {[%clk 0:00:34.6]} 30. Kc3
{[%clk 0:00:07.8]} 30... Qxd4+ {[%clk 0:00:34.4]} 31. Kxd4 {[%clk 0:00:08.7]}
31... Re4+ {[%clk 0:00:30.8]} 32. Kd3 {[%clk 0:00:08.1]} 32... Rc6 {[%clk
0:00:28.8]} 33. f3 {[%clk 0:00:07.9]} 33... Rexc4 {[%clk 0:00:27.9]} 34. hxg6+
{[%clk 0:00:08.6]} 34... hxg6 {[%clk 0:00:27.9]} 35. Rd7+ {[%clk 0:00:09.5]}
35... Kf6 {[%clk 0:00:27.7]} 36. Rxb7 {[%clk 0:00:10.2]} 0-1

[Event "Late-Titled-Tuesday-Blitz-March-05-2024"]
[Site "Chess.com"]
[Date "2024.03.05"]
[Round "5"]
[White "Arystanner"]
[Black "anasta10"]
[Result "1-0"]
[WhiteElo "2865"]
[BlackElo "2512"]
[TimeControl "180+1"]
[EndTime "14:54:36 PST"]
[Termination "Arystanner won on time"]

1. d4 {[%clk 0:03:00.9]} 1... Nf6 {[%clk 0:02:58.8]} 2. c4 {[%clk 0:03:00.9]}
2... c5 {[%clk 0:02:58.8]} 3. d5 {[%clk 0:03:01]} 3... d6 {[%clk 0:02:59.2]} 4.
Nc3 {[%clk 0:03:00.6]} 4... g6 {[%clk 0:03:00.1]} 5. e4 {[%clk 0:03:00.9]} 5...
Bg7 {[%clk 0:03:01]} 6. Bd3 {[%clk 0:03:01.4]} 6... O-O {[%clk 0:03:01.7]} 7. h3
{[%clk 0:03:02.2]} 7... e6 {[%clk 0:03:02.4]} 8. Nf3 {[%clk 0:03:02.7]} 8...
exd5 {[%clk 0:03:03.3]} 9. exd5 {[%clk 0:03:03.6]} 9... Re8+ {[%clk 0:03:03.7]}
10. Be3 {[%clk 0:03:04.3]} 10... Na6 {[%clk 0:03:02.4]} 11. O-O {[%clk
0:03:04.3]} 11... Nc7 {[%clk 0:03:01.4]} 12. Re1 {[%clk 0:03:02.1]} 12... b6
{[%clk 0:03:01]} 13. Bf4 {[%clk 0:02:57.1]} 13... Rxe1+ {[%clk 0:02:40.1]} 14.
Qxe1 {[%clk 0:02:57.6]} 14... a6 {[%clk 0:02:38.2]} 15. a4 {[%clk 0:02:57.4]}
15... h6 {[%clk 0:02:36]} 16. Qd2 {[%clk 0:02:56.4]} 16... g5 {[%clk 0:02:36.2]}
17. Bh2 {[%clk 0:02:57.1]} 17... Nce8 {[%clk 0:02:33.1]} 18. Re1 {[%clk
0:02:55.9]} 18... Bd7 {[%clk 0:02:33.2]} 19. Qc2 {[%clk 0:02:46.3]} 19... Rb8
{[%clk 0:02:23.5]} 20. Nd2 {[%clk 0:02:45.5]} 20... b5 {[%clk 0:02:15.4]} 21.
axb5 {[%clk 0:02:45.3]} 21... axb5 {[%clk 0:02:15.6]} 22. cxb5 {[%clk
0:02:46.1]} 22... Bf8 {[%clk 0:02:02.2]} 23. Nc4 {[%clk 0:02:39.8]} 23... Bxb5
{[%clk 0:01:44.6]} 24. Nxb5 {[%clk 0:02:40]} 24... Rxb5 {[%clk 0:01:44.3]} 25.
Nxd6 {[%clk 0:02:40.2]} 25... Bxd6 {[%clk 0:01:33.9]} 26. Bxd6 {[%clk
0:02:24.6]} 26... Nxd6 {[%clk 0:01:30.3]} 27. Bxb5 {[%clk 0:02:24.9]} 27... Nxb5
{[%clk 0:01:31.2]} 28. Qxc5 {[%clk 0:02:25.4]} 28... Nd6 {[%clk 0:01:28.7]} 29.
b4 {[%clk 0:02:18.7]} 29... Qd7 {[%clk 0:01:21.1]} 30. Qc6 {[%clk 0:02:17.6]}
30... Qd8 {[%clk 0:00:34.9]} 31. b5 {[%clk 0:02:14.1]} 31... Qa5 {[%clk
0:00:29.2]} 32. Rc1 {[%clk 0:02:09]} 32... Qd2 {[%clk 0:00:22.2]} 33. b6 {[%clk
0:02:03.3]} 33... Nfe4 {[%clk 0:00:18.1]} 34. Rf1 {[%clk 0:02:03.6]} 34... Qb2
{[%clk 0:00:14.4]} 35. Kh2 {[%clk 0:01:43.3]} 35... Qe5+ {[%clk 0:00:13.3]} 36.
g3 {[%clk 0:01:38.4]} 36... Qb2 {[%clk 0:00:13.7]} 37. Kg2 {[%clk 0:01:39.2]}
37... Kg7 {[%clk 0:00:12]} 38. Qc7 {[%clk 0:01:33.9]} 38... Qb4 {[%clk 0:00:09]}
39. Qa7 {[%clk 0:01:29.7]} 39... Nf6 {[%clk 0:00:05.7]} 40. Rd1 {[%clk
0:01:09.2]} 40... Qe4+ {[%clk 0:00:04.8]} 41. Kg1 {[%clk 0:01:09.6]} 41... Qe2
{[%clk 0:00:04.7]} 42. Qa1 {[%clk 0:01:08.8]} 42... Qb5 {[%clk 0:00:02.9]} 43.
Qd4 {[%clk 0:01:01.6]} 43... Qb3 {[%clk 0:00:02.1]} 44. Rc1 {[%clk 0:00:57.6]}
44... Nf5 {[%clk 0:00:02.2]} 45. Qe5 {[%clk 0:00:56.5]} 1-0